[Event "Titled Tuesday Blitz November 07 Early 2023"]
[White "Materia, Marco"]
[Black "Shuvalova, Polina"]
[WhiteFideId "45150451"]
[BlackFideId "24171760"]
[WhiteElo "2811"]
[BlackElo "2673"]
[Result "1/2-1/2"]
[Round "11"]
[TimeControl "180+1"]
[Date "2023.11.07"]
[WhiteClock "0:01:14"]
[BlackClock "0:00:06"]
[Board "30"]

1. d4 {[%clk 0:03:00]}  Nf6 {[%clk 0:02:59]} 2. c4 {[%clk 0:03:01]}  e6 {[%clk 0:02:59]} 3. Nf3 {[%clk 0:03:01]}  d5 {[%clk 0:03:00]} 4. Nc3 {[%clk 0:03:02]}  c5 {[%clk 0:03:00]} 5. cxd5 {[%clk 0:02:59]}  Nxd5 {[%clk 0:03:01]} 6. g3 {[%clk 0:02:59]}  Nxc3 {[%clk 0:02:57]} 7. bxc3 {[%clk 0:03:00]}  cxd4 {[%clk 0:02:58]} 8. cxd4 {[%clk 0:03:01]}  Bb4+ {[%clk 0:02:58]} 9. Bd2 {[%clk 0:03:02]}  Bxd2+ {[%clk 0:02:58]} 10. Qxd2 {[%clk 0:03:02]}  b6 {[%clk 0:02:57]} 11. Bg2 {[%clk 0:03:02]}  Bb7 {[%clk 0:02:57]} 12. O-O {[%clk 0:03:03]}  O-O {[%clk 0:02:57]} 13. Rfe1 {[%clk 0:03:02]}  Nd7 {[%clk 0:02:55]} 14. e4 {[%clk 0:03:02]}  Rc8 {[%clk 0:02:53]} 15. Rad1 {[%clk 0:03:01]}  Nf6 {[%clk 0:02:44]} 16. Qf4 {[%clk 0:02:54]}  h6 {[%clk 0:02:42]} 17. Ne5 {[%clk 0:02:52]}  Qc7 {[%clk 0:02:38]} 18. d5 {[%clk 0:02:47]}  exd5 {[%clk 0:02:35]} 19. exd5 {[%clk 0:02:48]}  Rcd8 {[%clk 0:02:20]} 20. d6 {[%clk 0:02:33]}  Rxd6 {[%clk 0:02:09]} 21. Rxd6 {[%clk 0:02:34]}  Bxg2 {[%clk 0:01:54]} 22. Nd7 {[%clk 0:02:15]}  Nxd7 {[%clk 0:01:43]} 23. Kxg2 {[%clk 0:02:14]}  Nc5 {[%clk 0:01:42]} 24. Red1 {[%clk 0:02:11]}  Re8 {[%clk 0:01:33]} 25. Rd8 {[%clk 0:02:01]}  Qxd8 {[%clk 0:01:31]} 26. Rxd8 {[%clk 0:02:01]}  Rxd8 {[%clk 0:01:32]} 27. Qc7 {[%clk 0:02:00]}  Rd7 {[%clk 0:01:32]} 28. Qc8+ {[%clk 0:02:00]}  Kh7 {[%clk 0:01:31]} 29. h4 {[%clk 0:02:01]}  h5 {[%clk 0:01:30]} 30. Kf3 {[%clk 0:01:59]}  g6 {[%clk 0:01:29]} 31. Qf8 {[%clk 0:01:59]}  Ne6 {[%clk 0:01:26]} 32. Qe8 {[%clk 0:01:59]}  Nc5 {[%clk 0:01:24]} 33. Kf4 {[%clk 0:01:57]}  Rd4+ {[%clk 0:01:19]} 34. Kf3 {[%clk 0:01:58]}  Rd3+ {[%clk 0:01:19]} 35. Ke2 {[%clk 0:01:57]}  Rd7 {[%clk 0:01:19]} 36. f3 {[%clk 0:01:56]}  Kg7 {[%clk 0:01:19]} 37. Qe5+ {[%clk 0:01:55]}  Kg8 {[%clk 0:01:17]} 38. g4 {[%clk 0:01:55]}  hxg4 {[%clk 0:01:15]} 39. fxg4 {[%clk 0:01:56]}  Ne6 {[%clk 0:01:05]} 40. Ke3 {[%clk 0:01:52]}  Rd4 {[%clk 0:00:59]} 41. Qb8+ {[%clk 0:01:49]}  Kg7 {[%clk 0:00:57]} 42. Qxa7 {[%clk 0:01:49]}  Rxg4 {[%clk 0:00:38]} 43. Qxb6 {[%clk 0:01:49]}  Rxh4 {[%clk 0:00:39]} 44. Qb2+ {[%clk 0:01:49]}  Kh7 {[%clk 0:00:33]} 45. Qf6 {[%clk 0:01:47]}  Rh3+ {[%clk 0:00:28]} 46. Kf2 {[%clk 0:01:44]}  Kg8 {[%clk 0:00:27]} 47. Qe7 {[%clk 0:01:36]}  Rh2+ {[%clk 0:00:20]} 48. Kg3 {[%clk 0:01:36]}  Rxa2 {[%clk 0:00:21]} 49. Qf6 {[%clk 0:01:35]}  Ra8 {[%clk 0:00:17]} 50. Qe7 {[%clk 0:01:34]}  Rd8 {[%clk 0:00:17]} 51. Qb4 {[%clk 0:01:34]}  Rd5 {[%clk 0:00:16]} 52. Qe4 {[%clk 0:01:33]}  Rg5+ {[%clk 0:00:16]} 53. Kf2 {[%clk 0:01:33]}  Rf5+ {[%clk 0:00:16]} 54. Kg3 {[%clk 0:01:33]}  Kg7 {[%clk 0:00:16]} 55. Qe3 {[%clk 0:01:33]}  Rg5+ {[%clk 0:00:15]} 56. Kf2 {[%clk 0:01:33]}  Rh5 {[%clk 0:00:15]} 57. Qc3+ {[%clk 0:01:33]}  Kg8 {[%clk 0:00:15]} 58. Qc8+ {[%clk 0:01:33]}  Kg7 {[%clk 0:00:15]} 59. Qc3+ {[%clk 0:01:33]}  Kg8 {[%clk 0:00:14]} 60. Qc8+ {[%clk 0:01:33]}  Nf8 {[%clk 0:00:15]} 61. Kg3 {[%clk 0:01:32]}  Rf5 {[%clk 0:00:16]} 62. Qc3 {[%clk 0:01:31]}  Ne6 {[%clk 0:00:14]} 63. Qc8+ {[%clk 0:01:31]}  Kh7 {[%clk 0:00:14]} 64. Qd7 {[%clk 0:01:31]}  g5 {[%clk 0:00:13]} 65. Qd3 {[%clk 0:01:30]}  Kg6 {[%clk 0:00:10]} 66. Kg4 {[%clk 0:01:30]}  Ng7 {[%clk 0:00:11]} 67. Qc2 {[%clk 0:01:18]}  f6 {[%clk 0:00:09]} 68. Qb1 {[%clk 0:01:15]}  Kf7 {[%clk 0:00:09]} 69. Qb7+ {[%clk 0:01:14]}  Kg6 {[%clk 0:00:09]} 70. Qb1 {[%clk 0:01:14]}  Kf7 {[%clk 0:00:08]} 71. Qb3+ {[%clk 0:01:14]}  Kf8 {[%clk 0:00:07]} 72. Qb8+ {[%clk 0:01:14]}  Kf7 {[%clk 0:00:06]} 73. Qb3+ {[%clk 0:01:14]}  Kg6 {[%clk 0:00:06]} 74. Qb1 {[%clk 0:01:14]} 1/2-1/2


[Site "https://www.chess.com"]

[Event "Titled Tuesday Blitz November 07 Early 2023"]
[White "Arabidze, Meri"]
[Black "Mekhitarian, Krikor Sevag"]
[WhiteFideId "13604040"]
[BlackFideId "2107660"]
[WhiteElo "2650"]
[BlackElo "2771"]
[Result "1/2-1/2"]
[Round "11"]
[TimeControl "180+1"]
[Date "2023.11.07"]
[WhiteClock "0:00:05"]
[BlackClock "0:00:02"]
[Board "33"]

1. d4 {[%clk 0:03:00]}  Nf6 {[%clk 0:02:59]} 2. c4 {[%clk 0:03:01]}  g6 {[%clk 0:02:59]} 3. g3 {[%clk 0:03:01]}  Bg7 {[%clk 0:02:58]} 4. Bg2 {[%clk 0:03:01]}  d5 {[%clk 0:02:58]} 5. cxd5 {[%clk 0:03:01]}  Nxd5 {[%clk 0:02:59]} 6. e4 {[%clk 0:03:00]}  Nb6 {[%clk 0:03:00]} 7. Ne2 {[%clk 0:03:00]}  c5 {[%clk 0:02:54]} 8. d5 {[%clk 0:03:00]}  O-O {[%clk 0:02:53]} 9. O-O {[%clk 0:03:00]}  e6 {[%clk 0:02:53]} 10. Nec3 {[%clk 0:03:00]}  exd5 {[%clk 0:02:53]} 11. exd5 {[%clk 0:03:00]}  Na6 {[%clk 0:02:52]} 12. Nd2 {[%clk 0:03:00]}  Re8 {[%clk 0:02:40]} 13. Nde4 {[%clk 0:02:59]}  Nc4 {[%clk 0:02:33]} 14. Bg5 {[%clk 0:02:42]}  f6 {[%clk 0:02:27]} 15. Bf4 {[%clk 0:02:40]}  g5 {[%clk 0:01:46]} 16. Bc1 {[%clk 0:02:40]}  Bf5 {[%clk 0:01:37]} 17. b3 {[%clk 0:02:33]}  Nd6 {[%clk 0:01:35]} 18. Nxd6 {[%clk 0:02:33]}  Qxd6 {[%clk 0:01:36]} 19. Bb2 {[%clk 0:02:14]}  Qd7 {[%clk 0:01:34]} 20. d6 {[%clk 0:02:06]}  Rad8 {[%clk 0:01:32]} 21. Qd5+ {[%clk 0:02:05]}  Kh8 {[%clk 0:01:29]} 22. Qxb7 {[%clk 0:02:04]}  Qxb7 {[%clk 0:00:50]} 23. Bxb7 {[%clk 0:02:05]}  Nb4 {[%clk 0:00:51]} 24. Na4 {[%clk 0:01:46]}  Nd3 {[%clk 0:00:38]} 25. Ba3 {[%clk 0:01:46]}  Rxd6 {[%clk 0:00:35]} 26. Nxc5 {[%clk 0:01:44]}  Nxc5 {[%clk 0:00:20]} 27. Bxc5 {[%clk 0:01:45]}  Rd2 {[%clk 0:00:20]} 28. Bxa7 {[%clk 0:01:36]}  h5 {[%clk 0:00:08]} 29. Be3 {[%clk 0:01:34]}  Rb2 {[%clk 0:00:08]} 30. Bd5 {[%clk 0:01:20]}  Rd8 {[%clk 0:00:07]} 31. Bc4 {[%clk 0:01:16]}  h4 {[%clk 0:00:07]} 32. a4 {[%clk 0:01:14]}  h3 {[%clk 0:00:08]} 33. a5 {[%clk 0:01:12]}  Be4 {[%clk 0:00:08]} 34. a6 {[%clk 0:01:13]}  g4 {[%clk 0:00:06]} 35. a7 {[%clk 0:01:12]}  f5 {[%clk 0:00:07]} 36. Rad1 {[%clk 0:00:56]}  Rxd1 {[%clk 0:00:05]} 37. Rxd1 {[%clk 0:00:57]}  Ra2 {[%clk 0:00:06]} 38. b4 {[%clk 0:00:41]}  Ra4 {[%clk 0:00:06]} 39. Bc5 {[%clk 0:00:38]}  Kh7 {[%clk 0:00:06]} 40. Kf1 {[%clk 0:00:18]}  Bc3 {[%clk 0:00:05]} 41. Bd3 {[%clk 0:00:14]}  Bg2+ {[%clk 0:00:02]} 42. Kg1 {[%clk 0:00:13]}  Kg6 {[%clk 0:00:03]} 43. b5 {[%clk 0:00:10]}  Bf3 {[%clk 0:00:02]} 44. Rf1 {[%clk 0:00:10]}  Ra5 {[%clk 0:00:03]} 45. Be3 {[%clk 0:00:07]}  Be5 {[%clk 0:00:02]} 46. b6 {[%clk 0:00:08]}  Bb7 {[%clk 0:00:02]} 47. Rd1 {[%clk 0:00:07]}  Bf3 {[%clk 0:00:02]} 48. Rb1 {[%clk 0:00:06]}  Ra3 {[%clk 0:00:02]} 49. Bf1 {[%clk 0:00:06]}  Bb7 {[%clk 0:00:03]} 50. Rc1 {[%clk 0:00:06]}  Bf3 {[%clk 0:00:02]} 51. Rb1 {[%clk 0:00:06]}  Be4 {[%clk 0:00:02]} 52. Rd1 {[%clk 0:00:06]}  Bf3 {[%clk 0:00:02]} 53. Rb1 {[%clk 0:00:05]} 1/2-1/2


[Site "https://www.chess.com"]

[Event "Titled Tuesday Blitz November 07 Early 2023"]
[White "Jaskolka, Tomasz"]
[Black "Socko, Bartosz"]
[WhiteFideId "1170791"]
[BlackFideId "1107038"]
[WhiteElo "2596"]
[BlackElo "2760"]
[Result "0-1"]
[Round "11"]
[TimeControl "180+1"]
[Date "2023.11.07"]
[WhiteClock "0:00:01"]
[BlackClock "0:00:41"]
[Board "34"]

1. e4 {[%clk 0:03:00]}  e6 {[%clk 0:02:59]} 2. Nf3 {[%clk 0:02:50]}  d5 {[%clk 0:03:00]} 3. e5 {[%clk 0:02:51]}  c5 {[%clk 0:03:00]} 4. b4 {[%clk 0:02:51]}  cxb4 {[%clk 0:03:01]} 5. a3 {[%clk 0:02:50]}  Nc6 {[%clk 0:03:02]} 6. axb4 {[%clk 0:02:50]}  Bxb4 {[%clk 0:03:02]} 7. c3 {[%clk 0:02:51]}  Be7 {[%clk 0:03:03]} 8. d4 {[%clk 0:02:51]}  Nh6 {[%clk 0:03:03]} 9. Ba3 {[%clk 0:02:45]}  Nf5 {[%clk 0:03:01]} 10. Bd3 {[%clk 0:02:44]}  O-O {[%clk 0:02:58]} 11. Bxe7 {[%clk 0:02:44]}  Qxe7 {[%clk 0:02:55]} 12. Na3 {[%clk 0:02:44]}  Bd7 {[%clk 0:02:52]} 13. Nc2 {[%clk 0:02:45]}  Rac8 {[%clk 0:02:48]} 14. Ne3 {[%clk 0:02:44]}  Nxe3 {[%clk 0:02:43]} 15. fxe3 {[%clk 0:02:45]}  f5 {[%clk 0:02:43]} 16. exf6 {[%clk 0:02:43]}  Qxf6 {[%clk 0:02:33]} 17. O-O {[%clk 0:02:43]}  Qh6 {[%clk 0:02:32]} 18. Qe2 {[%clk 0:02:39]}  Be8 {[%clk 0:02:26]} 19. Bb5 {[%clk 0:02:05]}  Bh5 {[%clk 0:02:22]} 20. Bxc6 {[%clk 0:01:52]}  Rxc6 {[%clk 0:02:23]} 21. Qd3 {[%clk 0:01:15]}  Bxf3 {[%clk 0:02:21]} 22. Rxf3 {[%clk 0:01:14]}  Rxf3 {[%clk 0:02:20]} 23. gxf3 {[%clk 0:01:15]}  a6 {[%clk 0:02:17]} 24. Ra2 {[%clk 0:01:02]}  Qg6+ {[%clk 0:02:07]} 25. Qxg6 {[%clk 0:01:02]}  hxg6 {[%clk 0:02:08]} 26. Ra3 {[%clk 0:01:03]}  g5 {[%clk 0:02:02]} 27. Kf2 {[%clk 0:01:03]}  Kf7 {[%clk 0:02:02]} 28. Ke2 {[%clk 0:01:03]}  Kf6 {[%clk 0:02:03]} 29. Kd3 {[%clk 0:01:04]}  Rb6 {[%clk 0:01:59]} 30. Ra2 {[%clk 0:00:58]}  Rb1 {[%clk 0:01:59]} 31. e4 {[%clk 0:00:41]}  Rf1 {[%clk 0:01:42]} 32. Ke2 {[%clk 0:00:41]}  Rh1 {[%clk 0:01:42]} 33. Ke3 {[%clk 0:00:39]}  Re1+ {[%clk 0:01:31]} 34. Kd2 {[%clk 0:00:37]}  Rb1 {[%clk 0:01:32]} 35. Kd3 {[%clk 0:00:35]}  Ke7 {[%clk 0:01:24]} 36. c4 {[%clk 0:00:28]}  Rb3+ {[%clk 0:01:23]} 37. Ke2 {[%clk 0:00:27]}  dxc4 {[%clk 0:01:23]} 38. Ra4 {[%clk 0:00:27]}  Rb2+ {[%clk 0:01:16]} 39. Ke3 {[%clk 0:00:27]}  Rc2 {[%clk 0:01:10]} 40. Ra5 {[%clk 0:00:23]}  Kd6 {[%clk 0:01:03]} 41. Rxg5 {[%clk 0:00:22]}  b5 {[%clk 0:01:03]} 42. Rxg7 {[%clk 0:00:23]}  b4 {[%clk 0:01:01]} 43. Ra7 {[%clk 0:00:22]}  Ra2 {[%clk 0:00:59]} 44. Rb7 {[%clk 0:00:19]}  b3 {[%clk 0:00:55]} 45. Rb6+ {[%clk 0:00:19]}  Kc7 {[%clk 0:00:55]} 46. Rb4 {[%clk 0:00:20]}  Rc2 {[%clk 0:00:51]} 47. d5 {[%clk 0:00:18]}  exd5 {[%clk 0:00:51]} 48. exd5 {[%clk 0:00:18]}  b2 {[%clk 0:00:48]} 49. Kd4 {[%clk 0:00:14]}  c3 {[%clk 0:00:48]} 50. Kc5 {[%clk 0:00:11]}  Rd2 {[%clk 0:00:43]} 51. d6+ {[%clk 0:00:02]}  Rxd6 {[%clk 0:00:42]} 52. Kc4 {[%clk 0:00:02]}  Rb6 {[%clk 0:00:40]} 53. Rxb6 {[%clk 0:00:01]}  Kxb6 {[%clk 0:00:41]} 0-1


[Site "https://www.chess.com"]

[Event "Titled Tuesday Blitz November 07 Early 2023"]
[White "vishwa_vijeta"]
[Black "Samunenkov, Ihor"]
[BlackFideId "14187086"]
[WhiteElo "2513"]
[BlackElo "2759"]
[Result "1-0"]
[Round "11"]
[TimeControl "180+1"]
[Date "2023.11.07"]
[WhiteClock "0:00:14"]
[BlackClock "0:00:00"]
[Board "35"]

1. e4 {[%clk 0:03:00]}  c6 {[%clk 0:02:59]} 2. d4 {[%clk 0:02:56]}  d5 {[%clk 0:02:59]} 3. Nd2 {[%clk 0:02:56]}  dxe4 {[%clk 0:02:58]} 4. Nxe4 {[%clk 0:02:57]}  Bf5 {[%clk 0:02:59]} 5. Ng3 {[%clk 0:02:57]}  Bg6 {[%clk 0:03:00]} 6. h4 {[%clk 0:02:55]}  h6 {[%clk 0:03:00]} 7. Nf3 {[%clk 0:02:55]}  e6 {[%clk 0:03:00]} 8. h5 {[%clk 0:02:55]}  Bh7 {[%clk 0:03:00]} 9. Bd3 {[%clk 0:02:55]}  Bxd3 {[%clk 0:02:59]} 10. Qxd3 {[%clk 0:02:56]}  Nf6 {[%clk 0:03:00]} 11. c3 {[%clk 0:02:51]}  c5 {[%clk 0:02:56]} 12. Bf4 {[%clk 0:02:44]}  Nc6 {[%clk 0:02:54]} 13. O-O-O {[%clk 0:02:39]}  Qa5 {[%clk 0:02:48]} 14. Kb1 {[%clk 0:02:34]}  O-O-O {[%clk 0:02:44]} 15. Ne5 {[%clk 0:02:11]}  Nxe5 {[%clk 0:02:34]} 16. Bxe5 {[%clk 0:02:05]}  Be7 {[%clk 0:02:02]} 17. Qf3 {[%clk 0:01:58]}  Qb6 {[%clk 0:01:17]} 18. d5 {[%clk 0:01:35]}  exd5 {[%clk 0:01:01]} 19. Nf5 {[%clk 0:01:31]}  Qe6 {[%clk 0:00:55]} 20. Rhe1 {[%clk 0:01:20]}  Ne4 {[%clk 0:00:55]} 21. Bxg7 {[%clk 0:00:41]}  Rhg8 {[%clk 0:00:29]} 22. c4 {[%clk 0:00:36]}  Nd2+ {[%clk 0:00:15]} 23. Kc2 {[%clk 0:00:24]}  Qxe1 {[%clk 0:00:06]} 24. Rxe1 {[%clk 0:00:21]}  Nxf3 {[%clk 0:00:06]} 25. Nxe7+ {[%clk 0:00:19]}  Kd7 {[%clk 0:00:04]} 26. gxf3 {[%clk 0:00:14]}  Rxg7 {[%clk 0:00:05]} 27. Nxd5 {[%clk 0:00:15]}  f5 {[%clk 0:00:01]} 28. Nf6+ {[%clk 0:00:13]}  Kc8 {[%clk 0:00:01]} 29. Re6 {[%clk 0:00:13]}  Rf7 {[%clk 0:00:01]} 30. Nd5 {[%clk 0:00:13]}  Rh8 {[%clk 0:00:02]} 31. Rg6 {[%clk 0:00:11]}  f4 {[%clk 0:00:01]} 32. Kd3 {[%clk 0:00:11]}  b6 {[%clk 0:00:02]} 33. Ke4 {[%clk 0:00:12]}  Re8+ {[%clk 0:00:01]} 34. Kd3 {[%clk 0:00:12]}  Rh8 {[%clk 0:00:01]} 35. Ke4 {[%clk 0:00:12]}  Kb7 {[%clk 0:00:01]} 36. Nxf4 {[%clk 0:00:11]}  Re8+ {[%clk 0:00:01]} 37. Ne6 {[%clk 0:00:12]}  Rfe7 {[%clk 0:00:02]} 38. Ke5 {[%clk 0:00:12]}  Rf7 {[%clk 0:00:02]} 39. f4 {[%clk 0:00:13]}  Kc8 {[%clk 0:00:02]} 40. f5 {[%clk 0:00:13]}  Kd7 {[%clk 0:00:02]} 41. Rxh6 {[%clk 0:00:13]}  Rg8 {[%clk 0:00:02]} 42. Rg6 {[%clk 0:00:13]}  Rh8 {[%clk 0:00:03]} 43. h6 {[%clk 0:00:14]}  Ke7 {[%clk 0:00:02]} 44. f6+ {[%clk 0:00:13]}  Kd7 {[%clk 0:00:03]} 45. Rg7 {[%clk 0:00:14]}  Ke8 {[%clk 0:00:02]} 46. Nc7+ {[%clk 0:00:14]}  Kf8 {[%clk 0:00:00]} 47. Ke6 {[%clk 0:00:14]} 1-0


[Site "https://www.chess.com"]

[Event "Titled Tuesday Blitz November 07 Early 2023"]
[White "Matinian, Nikita"]
[Black "Marchesich, Giovanni"]
[WhiteFideId "24129100"]
[BlackFideId "2824790"]
[WhiteElo "2675"]
[BlackElo "2428"]
[Result "1-0"]
[Round "11"]
[TimeControl "180+1"]
[Date "2023.11.07"]
[WhiteClock "0:00:27"]
[BlackClock "0:00:53"]
[Board "36"]

1. e4 {[%clk 0:03:00]}  e5 {[%clk 0:02:59]} 2. Nf3 {[%clk 0:03:00]}  Nc6 {[%clk 0:02:59]} 3. Bb5 {[%clk 0:03:01]}  a6 {[%clk 0:02:59]} 4. Ba4 {[%clk 0:03:01]}  Nf6 {[%clk 0:03:00]} 5. O-O {[%clk 0:03:01]}  d6 {[%clk 0:03:00]} 6. Bxc6+ {[%clk 0:02:58]}  bxc6 {[%clk 0:03:00]} 7. d4 {[%clk 0:02:59]}  exd4 {[%clk 0:03:01]} 8. Nxd4 {[%clk 0:03:00]}  c5 {[%clk 0:03:01]} 9. Nc6 {[%clk 0:03:00]}  Qd7 {[%clk 0:03:02]} 10. Na5 {[%clk 0:03:01]}  Qa4 {[%clk 0:03:02]} 11. Bd2 {[%clk 0:02:51]}  Be7 {[%clk 0:03:02]} 12. Re1 {[%clk 0:02:47]}  O-O {[%clk 0:02:57]} 13. b3 {[%clk 0:02:46]}  Qd7 {[%clk 0:02:53]} 14. Nc3 {[%clk 0:02:44]}  Qg4 {[%clk 0:02:50]} 15. Qxg4 {[%clk 0:02:42]}  Bxg4 {[%clk 0:02:48]} 16. h3 {[%clk 0:02:39]}  Bd7 {[%clk 0:02:44]} 17. f4 {[%clk 0:02:38]}  Rfd8 {[%clk 0:02:19]} 18. g4 {[%clk 0:02:35]}  Bf8 {[%clk 0:02:16]} 19. Rad1 {[%clk 0:02:27]}  g6 {[%clk 0:02:06]} 20. e5 {[%clk 0:02:21]}  Ne8 {[%clk 0:02:05]} 21. Ne4 {[%clk 0:01:43]}  Bg7 {[%clk 0:01:59]} 22. Bc3 {[%clk 0:01:37]}  Bb5 {[%clk 0:01:49]} 23. a4 {[%clk 0:01:32]}  Bd7 {[%clk 0:01:35]} 24. Kf2 {[%clk 0:01:19]}  Be6 {[%clk 0:01:16]} 25. Nc6 {[%clk 0:00:57]}  Rd7 {[%clk 0:01:15]} 26. Ng5 {[%clk 0:00:57]}  dxe5 {[%clk 0:01:10]} 27. Nxe6 {[%clk 0:00:57]}  Rxd1 {[%clk 0:01:09]} 28. Rxd1 {[%clk 0:00:58]}  fxe6 {[%clk 0:01:08]} 29. fxe5 {[%clk 0:00:52]}  Bh6 {[%clk 0:01:03]} 30. Rd7 {[%clk 0:00:51]}  Ng7 {[%clk 0:01:03]} 31. Rxc7 {[%clk 0:00:40]}  Rf8+ {[%clk 0:01:04]} 32. Ke2 {[%clk 0:00:41]}  Bf4 {[%clk 0:01:02]} 33. Rc8 {[%clk 0:00:31]}  Rxc8 {[%clk 0:00:56]} 34. Ne7+ {[%clk 0:00:31]}  Kf7 {[%clk 0:00:57]} 35. Nxc8 {[%clk 0:00:32]}  h5 {[%clk 0:00:56]} 36. Nd6+ {[%clk 0:00:29]}  Ke7 {[%clk 0:00:56]} 37. Nb7 {[%clk 0:00:29]}  hxg4 {[%clk 0:00:56]} 38. hxg4 {[%clk 0:00:30]}  g5 {[%clk 0:00:54]} 39. Nxc5 {[%clk 0:00:29]}  Ne8 {[%clk 0:00:54]} 40. Nxa6 {[%clk 0:00:28]}  Kd7 {[%clk 0:00:53]} 41. Nc5+ {[%clk 0:00:27]} 1-0


[Site "https://www.chess.com"]

[Event "Titled Tuesday Blitz November 07 Early 2023"]
[White "AlmasRakhmatullaev"]
[Black "Piesik, Piotr"]
[BlackFideId "1136194"]
[WhiteElo "2863"]
[BlackElo "2667"]
[Result "1-0"]
[Round "11"]
[TimeControl "180+1"]
[Date "2023.11.07"]
[WhiteClock "0:02:25"]
[BlackClock "0:01:30"]
[Board "37"]

1. e4 {[%clk 0:02:56]}  g6 {[%clk 0:03:00]} 2. d4 {[%clk 0:02:56]}  Bg7 {[%clk 0:03:00]} 3. Nc3 {[%clk 0:02:57]}  c6 {[%clk 0:03:01]} 4. Be3 {[%clk 0:02:58]}  d5 {[%clk 0:03:01]} 5. h4 {[%clk 0:02:57]}  h5 {[%clk 0:02:51]} 6. e5 {[%clk 0:02:52]}  Nh6 {[%clk 0:02:50]} 7. f3 {[%clk 0:02:52]}  f6 {[%clk 0:02:49]} 8. exf6 {[%clk 0:02:51]}  exf6 {[%clk 0:02:49]} 9. Qd2 {[%clk 0:02:51]}  Kf7 {[%clk 0:02:47]} 10. O-O-O {[%clk 0:02:51]}  Nd7 {[%clk 0:02:42]} 11. Bd3 {[%clk 0:02:50]}  Nb6 {[%clk 0:02:42]} 12. Nge2 {[%clk 0:02:50]}  Bf5 {[%clk 0:02:39]} 13. Kb1 {[%clk 0:02:50]}  Nc4 {[%clk 0:02:37]} 14. Bxc4 {[%clk 0:02:50]}  dxc4 {[%clk 0:02:37]} 15. d5 {[%clk 0:02:50]}  cxd5 {[%clk 0:02:19]} 16. Nxd5 {[%clk 0:02:51]}  Be6 {[%clk 0:02:17]} 17. Nef4 {[%clk 0:02:50]}  Bxd5 {[%clk 0:02:16]} 18. Nxd5 {[%clk 0:02:51]}  Nf5 {[%clk 0:02:16]} 19. Qe2 {[%clk 0:02:46]}  Re8 {[%clk 0:02:10]} 20. Qxc4 {[%clk 0:02:45]}  Re6 {[%clk 0:01:42]} 21. Nc7 {[%clk 0:02:29]}  Qe7 {[%clk 0:01:30]} 22. Nxe6 {[%clk 0:02:25]} 1-0


[Site "https://www.chess.com"]

[Event "Titled Tuesday Blitz November 07 Early 2023"]
[White "Mikhailovsky, Vladimir"]
[Black "Mendez Fortes, Eduardo Jesus"]
[WhiteFideId "34105414"]
[BlackFideId "3502376"]
[WhiteElo "2814"]
[BlackElo "2663"]
[Result "1-0"]
[Round "11"]
[TimeControl "180+1"]
[Date "2023.11.07"]
[WhiteClock "0:00:58"]
[BlackClock "0:01:03"]
[Board "38"]

1. e4 {[%clk 0:02:57]}  e5 {[%clk 0:02:59]} 2. Nf3 {[%clk 0:02:56]}  Nc6 {[%clk 0:03:00]} 3. Nc3 {[%clk 0:02:57]}  Nf6 {[%clk 0:03:00]} 4. d4 {[%clk 0:02:58]}  exd4 {[%clk 0:03:01]} 5. Nxd4 {[%clk 0:02:59]}  Bb4 {[%clk 0:03:01]} 6. Nxc6 {[%clk 0:02:59]}  bxc6 {[%clk 0:03:02]} 7. Bd3 {[%clk 0:03:00]}  d5 {[%clk 0:03:02]} 8. exd5 {[%clk 0:03:01]}  cxd5 {[%clk 0:03:03]} 9. O-O {[%clk 0:03:02]}  O-O {[%clk 0:03:03]} 10. h3 {[%clk 0:03:02]}  c6 {[%clk 0:03:04]} 11. Qf3 {[%clk 0:03:03]}  Bd6 {[%clk 0:03:04]} 12. Bf4 {[%clk 0:03:03]}  Rb8 {[%clk 0:03:01]} 13. b3 {[%clk 0:03:03]}  Rb4 {[%clk 0:03:00]} 14. Ne2 {[%clk 0:03:04]}  h6 {[%clk 0:02:56]} 15. Rad1 {[%clk 0:03:01]}  Bxf4 {[%clk 0:02:56]} 16. Nxf4 {[%clk 0:03:01]}  Qc7 {[%clk 0:02:49]} 17. c4 {[%clk 0:03:01]}  d4 {[%clk 0:02:38]} 18. Rfe1 {[%clk 0:02:54]}  c5 {[%clk 0:02:37]} 19. Nd5 {[%clk 0:02:41]}  Nxd5 {[%clk 0:02:34]} 20. Qxd5 {[%clk 0:02:26]}  Rb6 {[%clk 0:02:07]} 21. Re5 {[%clk 0:02:20]}  Rc6 {[%clk 0:02:00]} 22. Rde1 {[%clk 0:02:05]}  Qd7 {[%clk 0:01:26]} 23. Qe4 {[%clk 0:01:33]}  g6 {[%clk 0:01:11]} 24. Qf4 {[%clk 0:01:27]}  Qd6 {[%clk 0:01:05]} 25. Qxh6 {[%clk 0:01:24]}  Bb7 {[%clk 0:01:03]} 26. Rh5 {[%clk 0:00:58]} 1-0


[Site "https://www.chess.com"]

[Event "Titled Tuesday Blitz November 07 Early 2023"]
[White "Korchmar, Vasiliy"]
[Black "Kotlyar, Kirill"]
[WhiteFideId "24131750"]
[BlackFideId "24145599"]
[WhiteElo "2741"]
[BlackElo "2582"]
[Result "1-0"]
[Round "11"]
[TimeControl "180+1"]
[Date "2023.11.07"]
[WhiteClock "0:01:07"]
[BlackClock "0:00:14"]
[Board "42"]

1. e4 {[%clk 0:03:00]}  c5 {[%clk 0:02:25]} 2. d4 {[%clk 0:03:00]}  cxd4 {[%clk 0:02:24]} 3. Qxd4 {[%clk 0:03:01]}  Nc6 {[%clk 0:02:21]} 4. Qd3 {[%clk 0:02:58]}  e6 {[%clk 0:02:21]} 5. Nc3 {[%clk 0:02:54]}  Bb4 {[%clk 0:02:18]} 6. Bf4 {[%clk 0:02:47]}  Nf6 {[%clk 0:02:12]} 7. Ne2 {[%clk 0:02:44]}  d5 {[%clk 0:02:04]} 8. O-O-O {[%clk 0:02:40]}  O-O {[%clk 0:01:44]} 9. exd5 {[%clk 0:02:40]}  Nxd5 {[%clk 0:01:44]} 10. Nxd5 {[%clk 0:02:40]}  exd5 {[%clk 0:01:45]} 11. Qxd5 {[%clk 0:02:41]}  Qxd5 {[%clk 0:01:45]} 12. Rxd5 {[%clk 0:02:41]}  Be6 {[%clk 0:01:42]} 13. Rd1 {[%clk 0:02:40]}  Rfd8 {[%clk 0:01:40]} 14. Rxd8+ {[%clk 0:02:17]}  Rxd8 {[%clk 0:01:41]} 15. a3 {[%clk 0:02:17]}  Bc5 {[%clk 0:01:37]} 16. Bg3 {[%clk 0:02:15]}  Bg4 {[%clk 0:01:27]} 17. h3 {[%clk 0:02:05]}  Bh5 {[%clk 0:01:26]} 18. Nc3 {[%clk 0:02:02]}  Bd4 {[%clk 0:01:27]} 19. Be2 {[%clk 0:01:57]}  Bg6 {[%clk 0:01:14]} 20. Rd1 {[%clk 0:01:54]}  Bxc3 {[%clk 0:01:14]} 21. Rxd8+ {[%clk 0:01:53]}  Nxd8 {[%clk 0:01:15]} 22. bxc3 {[%clk 0:01:54]}  Be4 {[%clk 0:01:15]} 23. f3 {[%clk 0:01:47]}  Bc6 {[%clk 0:01:15]} 24. Bc4 {[%clk 0:01:46]}  Ne6 {[%clk 0:01:15]} 25. Bf2 {[%clk 0:01:40]}  a6 {[%clk 0:01:13]} 26. Be3 {[%clk 0:01:30]}  Kf8 {[%clk 0:01:13]} 27. Kb2 {[%clk 0:01:23]}  Ke7 {[%clk 0:01:13]} 28. Kb3 {[%clk 0:01:20]}  h6 {[%clk 0:01:13]} 29. Kb4 {[%clk 0:01:20]}  Nc7 {[%clk 0:00:50]} 30. Kc5 {[%clk 0:01:08]}  b5 {[%clk 0:00:14]} 31. Kxc6 {[%clk 0:01:07]} 1-0


[Site "https://www.chess.com"]